Cogmind - Beta 15 @@@ ROGUE MODE // 2025.05.11 @ 20:15:01 Player: LustLizard Result: Self-destructed Performance ------------- Evolutions (1) 500 Regions Visited (3) 600 Robots Destroyed (51) 255 Value Destroyed (1024) 1024 Prototype IDs (1) 20 Alien Tech Used (0) 0 Bonus (102) 102 TOTAL SCORE: 2501 Bonus ------- Follower Combat Kills 117 Friendly Fire -15 Cogmind --------- Core Integrity 202/400 Matter 295/300 Energy 21/100 System Corruption 0% Temperature Cool (0) Movement Rolling (110) Ox2 Location -9/Materials Parts ------- > --- POWER (1) -------- (None) > --- PROPULSION (2) --- Wheel > --- UTILITY (4) ------ Improved Heat Sink Large Storage Unit Structural Scanner Signal Interpreter > --- WEAPON (2) ------- (None) > --- INVENTORY (15) --- Improved Aluminum Leg Armored Wheel Medium Storage Unit Sensor Array Improved Terrain Scanner Advanced Targeting Computer Particle Gun Beamcaster Heavy Assault Rifle Grenade Launcher Grenade Launcher Rocket Launcher Heavy Hammer Katana Peak State ------------ > --- POWER ------------ Light Angular Momentum Engine > --- PROPULSION ------- Light Treads Wheel > --- UTILITY ---------- Improved Heat Sink Large Storage Unit Structural Scanner Signal Interpreter > --- WEAPON ----------- Medium Laser Beam Rifle > --- INVENTORY -------- Light Nuclear Core Improved Aluminum Leg Armored Wheel Medium Storage Unit Medium Laser Medium Laser Beamcaster Heavy Assault Rifle Heavy Assault Rifle Grenade Launcher Grenade Launcher Grenade Launcher Heavy Hammer Katana [Rating: 18] Favorites ----------- Power Light Ion Engine Engine Light Ion Engine Power Core Light Nuclear Core Propulsion Light Treads Treads Light Treads Leg Aluminum Leg Wheel Wheel Flight Unit Improved Flight Unit Utility Large Storage Unit Device Sensor Array Storage Large Storage Unit Processor Signal Interpreter Weapon Medium Laser Energy Gun Medium Laser Launcher Grenade Launcher Build | -11 -10 -10 -9 ------- Run | Yrd Mat Min Mat Slots Evolved 2 | . . . 2 Power . | . . . . Propulsion . | . . . . Utility 2 | . . . 2 Weapon . | . . . . Parts Attached 31 | 4 10 5 12 Power 8 | 1 2 2 3 Engine 7 | 1 2 2 2 Core 1 | . . . 1 Reactor . | . . . . Propulsion 8 | 2 . 2 4 Treads 3 | 1 . 1 1 Leg 1 | . . . 1 Wheel 3 | 1 . 1 1 Hover . | . . . . Flight 1 | . . . 1 Utility 7 | 1 2 . 4 Device 4 | . 1 . 3 Storage 2 | 1 1 . . Processor 1 | . . . 1 Hackware . | . . . . Protection . | . . . . Artifact . | . . . . Weapon 8 | . 6 1 1 Energy Gun 6 | . 4 1 1 Energy Cannon . | . . . . Ballistic Gun . | . . . . Ballistic Cannon . | . . . . Launcher 2 | . 2 . . Special Weapon . | . . . . Impact Weapon . | . . . . Slashing Weapon . | . . . . Piercing Weapon . | . . . . Special Melee Weapon . | . . . . Unidentified Prototypes 1 | . . . 1 Parts Lost 12 | . 1 3 8 Power 5 | . 1 1 3 Propulsion 2 | . . 1 1 Utility 1 | . . . 1 Weapon 4 | . . 1 3 Highest Loss Streak 5 | . 1 2 5 To Critical Strikes . | . . . . Average Backups 14 | 5 12 14 14 Power . | . 1 . . Propulsion 2 | 2 4 3 2 Utility 2 | . 2 4 2 Weapon 7 | 1 4 6 9 Tool/Special . | . . . . Unused Backups 22 | . 2 . 20 Power . | . . . . Propulsion 3 | . . . 3 Utility 4 | . . . 4 Weapon 15 | . 2 . 13 Tool/Special . | . . . . Average Slot Usage (%) 98 | . 94 98 99 Engine 10 | . 13 13 8 Core 1 | . . . 1 Treads 12 | . 14 13 10 Wheel 12 | . 14 13 11 Device 16 | . 4 14 21 Storage 13 | . 22 14 11 Processor 6 | . . . 10 Energy Gun 20 | . 23 14 21 Launcher 3 | . . 13 . Peak Build Rating 18 | 4 8 8 18 Average Rating 11 | 2 7 7 13 On Entrance 5 | . 4 8 8 Naked Turns . | . . . . Heaviest Build 36 | 8 32 32 36 Greatest Support 22 | 16 16 16 22 Greatest Overweight (x) 3 | . 1 2 3 Average Overweight (x) 1 | . . 1 2 Largest Inventory Capacity 15 | 8 15 15 15 Average Capacity 14 | 7 14 15 15 Most Carried 15 | 8 15 15 15 Average Carried 14 | 5 12 14 14 Final Capacity 15 | 8 15 15 15 Final Carried 15 | 8 15 15 14 Class Distribution -------------------- 50% | Mutant 49% | Skirmisher Dominant Class ---------------- Mutant | -10/Materials Mutant | -10/Mines Skirmisher | -9/Materials Resources | -11 -10 -10 -9 ----------- Run | Yrd Mat Min Mat Matter Collected 655 | 240 60 215 140 Remotely . | . . . . Salvage Created 1578 | . 393 235 950 Parts 100 | . 40 17 43 Haulers Intercepted 6 | . . . 6 Recyclers Shooed 2 | . 1 . 1 Parts Field Recycled . | . . . . Retrieved Matter . | . . . . Parts Self-Destructed . | . . . . Prevented . | . . . . Kills | -11 -10 -10 -9 ------- Run | Yrd Mat Min Mat Combat Hostiles Destroyed 36 | . 13 9 14 Guns 27 | . 13 2 12 AOE 7 | . . 7 . Classes Destroyed 11 | . 4 3 4 Worker 1 | . . . 1 Builder 1 | . 1 . . Tunneler 2 | . . 2 . Hauler 6 | . . . 6 Recycler 2 | . . 1 1 Watcher 4 | . 3 . 1 Swarmer 16 | . 9 3 4 Grunt 11 | . 4 5 2 Duelist 1 | . . . 1 Sentry 7 | . . . 7 Assembled 1 | . . 1 . Best Kill Streak 9 | . 9 5 4 Combat Bots Only 7 | . 7 3 4 Max Kills in Single Turn 2 | . 2 2 1 Gunslinging . | . . . . Exploded 2 | . . 2 . Melee . | . . . . Uniques/NPCs Destroyed . | . . . . Combat | -11 -10 -10 -9 -------- Run | Yrd Mat Min Mat Hostile Shots Fired 172 | . 57 15 100 Missed 41 | . 19 1 21 Hits 131 | . 38 14 79 Projectile 131 | . 38 14 79 Critical Strikes 2 | . . . 2 Damage Taken 1568 | . 358 290 920 Core 361 | . 138 25 198 Absorbed by Shields . | . . . . Regen/Repaired (Parts) 14 | . . . 14 Core Remaining (%) 67 | 100 . 34 . Volleys Fired 127 | . 32 18 77 Largest 2 | . 2 2 2 Hottest 106 | . 100 100 106 Shots Fired 245 | . 64 33 148 Gun 232 | . 64 20 148 Cannon . | . . . . Launcher 13 | . . 13 . Special . | . . . . Kinetic . | . . . . Thermal 232 | . 64 20 148 Explosive 13 | . . 13 . Electromagnetic . | . . . . Robot Hit Streak 16 | . 9 9 16 Robot Miss Streak 5 | . 4 3 5 Penetration Max . | . . . . Secondary Targets 5 | . 3 . 2 Max Gunslinging Chain 1 | . 1 . 1 Shots Hit Robots 158 | . 34 21 103 Core Hits 74 | . 21 19 34 Critical Kills . | . . . . Critical Parts Destroyed . | . . . . Critical Strikes 15 | . 2 2 11 Burn 15 | . 2 2 11 Melee Attacks . | . . . . Impact . | . . . . Slashing . | . . . . Piercing . | . . . . Sneak Attacks . | . . . . Combat Hostiles . | . . . . Follow-up Attacks . | . . . . Damage Inflicted 2689 | . 435 790 1464 Guns 2076 | . 435 177 1464 Cannons . | . . . . Explosions 613 | . . 613 . Melee . | . . . . Ramming . | . . . . Kinetic . | . . . . Thermal 2076 | . 435 177 1464 Explosive 613 | . . 613 . Electromagnetic . | . . . . Impact . | . . . . Slashing . | . . . . Piercing . | . . . . Highest Corruption . | . . . . Average Corruption . | . . . . Corruption Purged . | . . . . Corruption Blocked . | . . . . Overload Shots . | . . . . Overflow Damage 7 | . . 7 . Projectiles . | . . . . Explosions 7 | . . 7 . Melee . | . . . . Knockbacks . | . . . . Impact . | . . . . Kinetic . | . . . . Secondary . | . . . . Self-Inflicted Damage 144 | . . 144 . Shots 7 | . . 7 . Rammed . | . . . . Targets Rammed . | . . . . Kicked . | . . . . Crushed . | . . . . Highest Temperature 276 | . 276 54 228 Average Temperature 68 | . 78 27 68 Received Heat Transfer 422 | . 90 80 252 Siege Activations . | . . . . Martial Activations . | . . . . Shielding Activations . | . . . . Robots Disrupted . | . . . . Combat Hostiles . | . . . . Robots Corrupted . | . . . . Combat Hostiles . | . . . . Parts Fried . | . . . . Impact Corruptions . | . . . . Robots Melted 2 | . . . 2 Combat Hostiles 2 | . . . 2 Parts Melted 19 | . 1 2 16 Heat Transferred 6789 | . 1313 666 4810 Parts Sabotaged . | . . . . Parts Stolen . | . . . . Parts Stripped . | . . . . Power Chain Reactions . | . . . . Alert | -11 -10 -10 -9 ------- Run | Yrd Mat Min Mat Maximum Alert Level . | . . . . Low Security (%) 100 | 100 100 100 100 Level 1 . | . . . . Level 2 . | . . . . Level 3 . | . . . . Level 4 . | . . . . Level 5 . | . . . . High Security . | . . . . Max Security . | . . . . Peak Influence 168 | . 168 155 104 Initial 37 | . . 37 . Average 52 | . 107 62 30 Influence Increases 1302 | . 362 331 609 Destroy 0b10 Robot/C 800 | . 260 200 340 Destroy 0b10 Robot/NC 95 | . 20 15 60 Destroy Leader 194 | . 56 10 128 Allied During Kill 49 | . . 11 38 Successful Hack 45 | . 11 6 28 Disable Machine 30 | . . 30 . Destroy Structure 59 | . . 59 . Lose Combat Pursuer 30 | . 15 . 15 Influence Decreases 1222 | . 266 427 529 Entered New Map 59 | . . 59 . Time Decay 961 | . 256 276 429 Lost Part 120 | . 10 30 80 Lost Ally 40 | . . 20 20 Purge Threat 42 | . . 42 . Squads Dispatched 3 | . 2 . 1 Investigation 2 | . 1 . 1 Extermination . | . . . . Reinforcement 1 | . 1 . . Assault . | . . . . Garrison . | . . . . Intercept . | . . . . Searches Triggered . | . . . . Construction Impeded . | . . . . Haulers Reinforced . | . . . . Active Scanning Responses . | . . . . Cargo Convoy Interrupts . | . . . . Stealth | -11 -10 -10 -9 --------- Run | Yrd Mat Min Mat Distress Signals 4 | . 2 . 2 Communications Jammed . | . . . . Distress Signals . | . . . . Times Spotted 59 | . 19 11 29 Peak Tracking Total 7 | . 5 3 7 Tactical Retreats 2 | . 1 . 1 Traps | -11 -10 -10 -9 ------- Run | Yrd Mat Min Mat Traps Triggered 3 | . 1 . 2 Indirectly . | . . . . Trap Hack Attempts . | . . . . Triggered . | . . . . Disarmed . | . . . . Reprogrammed . | . . . . Reused . | . . . . Traps Extracted . | . . . . Installed . | . . . . Triggered . | . . . . Machines | -11 -10 -10 -9 ---------- Run | Yrd Mat Min Mat Machines Disabled 2 | . . 2 . Max in Single Turn 2 | . . 2 . Machines Repaired . | . . . . Machines Dismantled . | . . . . Machines Sabotaged . | . . . . Overloaded Fab Kills . | . . . . Hacking | -11 -10 -10 -9 --------- Run | Yrd Mat Min Mat Machines Accessed 13 | . 3 1 9 Terminals 12 | . 3 1 8 Fabricators . | . . . . Repair Stations 1 | . . . 1 Recycling Units . | . . . . Scanalyzers . | . . . . Garrison Access . | . . . . Total Hacks 44 | . 8 4 32 Successful 25 | . 5 3 17 Failed 19 | . 3 1 15 Catastrophic 2 | . 1 . 1 Database Lockouts . | . . . . Manual 40 | . 7 4 29 Terminals 42 | . 8 4 30 Fabricators . | . . . . Repair Stations 2 | . . . 2 Recycling Units . | . . . . Scanalyzers . | . . . . Garrison Access . | . . . . Terminal Hacks 9 | . 1 3 5 Robot Analysis 4 | . . 2 2 Unreport Threat 1 | . . 1 . Locate Traps 4 | . 1 . 3 Fabricator Hacks . | . . . . Repair Station Hacks 2 | . . . 2 Scan Component 1 | . . . 1 Repair 1 | . . . 1 Recycling Unit Hacks . | . . . . Scanalyzer . | . . . . Garrison Access Hacks . | . . . . Unauthorized Hacks 14 | . 4 . 10 Terminals 14 | . 4 . 10 Assimilate 10 | . 3 . 7 Botnet 4 | . 1 . 3 Fabricators . | . . . . Repair Stations . | . . . . Recycling Units . | . . . . Scanalyzers . | . . . . Garrison Access . | . . . . Data Cores Recovered . | . . . . Used . | . . . . Hacking Detections 12 | . 3 1 8 Full Trace Events . | . . . . Feedback Events . | . . . . Feedback Blocked . | . . . . Robot Schematics Acquired . | . . . . Robots Built . | . . . . Authchips . | . . . . Time . | . . . . Total Robot Build Rating . | . . . . Part Schematics Acquired . | . . . . Parts Built . | . . . . Authchips . | . . . . Time . | . . . . Total Part Build Rating . | . . . . Parts Repaired 1 | . . . 1 Time 26 | . . . 26 Parts Recycled . | . . . . Recycled Matter . | . . . . Retrieved Matter . | . . . . Retrieved Components . | . . . . Parts Scanalyzed . | . . . . Part Schematics Acquired . | . . . . Parts Damaged . | . . . . Bothacking | -11 -10 -10 -9 ------------ Run | Yrd Mat Min Mat Used RIF Installer . | . . . . Robots Hacked . | . . . . Non-combat . | . . . . Combat . | . . . . Robot Hacks Applied . | . . . . Relay Couplers Released . | . . . . Fabnet Peak Effective % . | . . . . Robots Rewired . | . . . . Allies Hacked . | . . . . Hacks Repelled . | . . . . Allies | -11 -10 -10 -9 -------- Run | Yrd Mat Min Mat Total Allies 5 | . . 5 . Largest Group 4 | . . 4 3 Highest-Rated Group 71 | . . 71 63 Highest-Rated Ally 31 | . . 31 31 Total Orders . | . . . . Ally Attacks 56 | . . 17 39 Total Damage 730 | . . 184 546 Kills 8 | . . 2 6 Allies Corrupted 1 | . . 1 . Allies Melted . | . . . . Intel | -11 -10 -10 -9 ------- Run | Yrd Mat Min Mat Active Infowar (turns) 1823 | . . . 1823 Sensors 1755 | . . . 1755 Structural 1651 | . . . 1651 Robot Analysis Total 4 | . . 2 2 Derelict Logs Recovered . | . . . . Drone Launches . | . . . . Drone Recoveries . | . . . . Exploration | -11 -10 -10 -9 ------------- Run | Yrd Mat Min Mat Turns Passed 3196 | 53 632 688 1823 Spaces Moved 1935 | 41 412 416 1066 Core 7 | 7 . . . Treads 105 | . . . 105 Legs 2 | . . . 2 Wheels 1821 | 34 412 416 959 Hover . | . . . . Flight . | . . . . Fastest Speed 50 | 50 100 110 100 Average Speed 125 | 91 113 113 135 Slowest Speed 330 | 100 115 115 330 Overloaded Moves . | . . . . Propulsion Burnouts . | . . . . Robots Hopped . | . . . . Potential Cave-ins . | . . . . Cave-ins Triggered . | . . . . Exploration Rate (%) 60 | 4 59 89 88 Regions Visited 3 Branch Regions 1 Pre-discovered Areas . | . . . . Known Exits Taken . | . . . . Unknown Exits Taken 3 | 1 1 1 . Scrap Searched 1 | . . 1 . Spaces Dug . | . . . . Terrain Destroyed 94 | . . 94 . Melee . | . . . . Projectile . | . . . . AOE 94 | . . 94 . Terrain Rammed . | . . . . Walls Destroyed . | . . . . Machines Disabled . | . . . . Actions | -11 -10 -10 -9 --------- Run | Yrd Mat Min Mat Total 2479 | 56 515 601 1307 Wait 299 | . 37 153 109 Move 1932 | 40 411 415 1066 Hop . | . . . . Pick Up 58 | 12 18 6 22 Fast Attach . | . . . . Attach 29 | 4 8 5 12 Detach . | . . . . Swap 9 | . 2 1 6 Drop 25 | . 7 3 15 Fire 127 | . 32 18 77 Melee . | . . . . Ram . | . . . . Kick . | . . . . Crush . | . . . . Escape Stasis . | . . . . Rewire . | . . . . Trap . | . . . . Miscellaneous . | . . . . Route ------- -11/Scrapyard -10/Materials (discovered 3 exits: *Mat x2 / *Min) -10/Mines -9/Materials (discovered 3 exits: *Mat x2 / *Min) History --------- Turn | Location | Event 28 | -11/Scrapyard | Discovered new exit (range 15) 54 | -11/Scrapyard | Entered Materials 200 | -10/Materials | Destroyed 7 combat bots 203 | -10/Materials | Discovered new exit (range 15) 315 | -10/Materials | Build established: Mutant 494 | -10/Materials | Core integrity fell below 50% 558 | -10/Materials | Discovered new exit (range 7) 574 | -10/Materials | Discovered new exit (range 16) 686 | -10/Materials | Entered Mines 790 | -10/Mines | Excavation squad dispatched 790 | -10/Mines | A large section of the Mines collapsed 922 | -10/Mines | Found a hidden stash of uninstalled traps 1040 | -10/Mines | Excavation squad dispatched 1071 | -10/Mines | Assisted by bots powering up and referring to "LRC-V3" 1290 | -10/Mines | Excavation squad dispatched 1348 | -10/Mines | Found a damaged Exp. Sensor Array with a note attached 1355 | -10/Mines | Discovered new exit (range 9) 1374 | -10/Mines | Entered Materials 1374 | -9/Materials | Accompanied by 3 allies 1374 | -9/Materials | Evolved 2 slots: Utility x2 1379 | -9/Materials | Led the pair of lost Derelicts to an unsafe place 1616 | -9/Materials | Discovered new exit (range 15) 1634 | -9/Materials | Identified exit to Materials 1856 | -9/Materials | Build established: Skirmisher 1992 | -9/Materials | Discovered new exit (range 14) 2184 | -9/Materials | Discovered exit to Materials (range 8) 2387 | -9/Materials | Identified exit to Mines 2546 | -9/Materials | Repaired Sensor Array 3197 | -9/Materials | Self-destructed Last Messages --------------- 03148_ Med. Laser destroyed. 03161_ S-10 Pest destroyed. 03161_ Switching to secondary target: S-10 Pest. 03167_ Lgt. Nuclear Core destroyed. 03170_ G-34 Mercenary suffers critical hit (Burn). 03170_ Ion Engine melted. 03170_ Sml. Laser melted. 03170_ G-34 Mercenary destroyed. 03180_ Lgt. Treads destroyed. 03181_ Y-45 Defender heat damages Hvy. Assault Rifle. 03181_ R-06 Scavenger collects Flight Unit. 03183_ Med. Laser destroyed. 03186_ Y-45 Defender heat damages Heat Sink. 03186_ Y-45 Defender critical meltdown. 03186_ Imp. Ion Engine melted. 03186_ Lgt. Treads melted. 03187_ S-10 Pest destroyed. 03196_ Med. Laser destroyed. Map ----- +----------------------------------------------------+ | #% # ##???## # # #### ##? | | # ] # ##???## # # #### ##? | | +[ ! # | ##???## """ # # #### ##? | | # [[ # ##???## """ # # #### ##? | | # # ####### """ # ########### ### | | ############+################## ###########+### | | %% ########## ######## # | | % """ ##"S = # | | % ######### "T" ##""" + | | ###### ###########+############ ## "" # | | ######+######### ######### ## %= # | | ## ##?## ## # !!! [ ## * [ # | | ## ##?##[ ## """ ##= !!! ##+###### | | ## ##?## ## """ ##==!! % | | ## ##?## "T" ## """ ##%=* | | ## ##?## ## """ ##== ] | | ## ##?########## """ ## #########+##### | | ## ##?########## # ##### # | | ## ############# """ # % ##?##""" # | | #######+################ """ + ##?##"R # | | + # """ # ##?##""" # | | ##### # """ # ##### + | | ##### """ """ T # """ ###+####### """ # | | ##### """ """ / %= # ## """ # | | ###"" """ """ ###s#### ## """ # | | ###"Y """ """ ##@% ## ## # | | ####"" """ """ ## ## ########### | | ###### ## ## ########### | | ###### ## ## ##????????? | | ## ## ##????????? | | #######+############ ## ## ##????????? | | #### ######## ## ## ##????????? | | ##????????????????## ## ############????????? | | ####??????????????## ## [ ############????????? | | ####??????????????# ###+###??????????????????? | | ]##??????????????? %= ??????????????????? | | ##??????????????? ? ????????????????????? | | ##??????????????? ???????????????????? | | ##??????????????? ######???????????????????? | | ##???????????????????#######???????????????????? | | ##?????????????????????????????????????????????? | | ##?????????????????????????????????????????????? | | ###?????????????????????????????????????????????? | | ####?????????????????????????????????????????????? | | | | | | | | | | | | | +----------------------------------------------------+ Best States ------------- Heat Dissipation 42 Energy Generation 18 Energy Capacity 250 Matter Stores 300 Matter Capacity 300 Sight Range 16 Robot Scan Range 14 Terrain Scan Density 10 Evasion (%) 50 Recoil Reduction 1 Item Schematics ----------------- None Robot Schematics ------------------ None Fabricated ------------ Nothing Repaired ---------- Sensor Array | 30% | -9/Materials Alien Tech Used ----------------- None Achievements -------------- None Challenges ------------ None Game ------ Seed DefenseSalvageDisintegrator Manual? 0 Play Time 00:25:13 Cumulative 138.6 hours Start 2025.05.11 @ 19:51:36 End 2025.05.11 @ 20:15:01 Sessions 1 Manual Loads 0 Difficulty Rogue Special Mode None Game No. 132 Rogue 132 Adventurer 0 Explorer 0 Win Type - Total 1 Types 1/0/0/0/0/0/0/0/0/0 Lore% 37 Gallery% 42 Achievement% 37 Wizard Run 0 Options --------- Layout 1 ASCII 0 Keyboard 0 Movement Numpad Keybinds 0 Fullscreen 1 Font 24/Smallcaps Map View 50x35 Zoom Use 0% Tactical HUD 1 Map Filters NONE Filters NONE Steam 1 RUN: 4b686302-b3e3-4459-b875-8f56b15dc7ee